bitfinex/quotes_ETHUSD_20220111
["timestamp","ask_amount","ask_price","bid_price","bid_amount"]
[1641876849676,8.70693406,3115.1,3113.4,0.01255931]
[1641876849873,5.27060809,3115.5,3113.7,0.04354743]
[1641876850073,0.08031,3116.8,3113.7,0.04354743]
[1641876850373,0.9365281,3116.6,3113.7,0.04354743]
[1641876850639,3.86067153,3116.3,3115.0,0.01299246]
[1641876850840,24.91202486,3118.1,3115.2,0.01209674]
[1641876851043,0.08025,3119.9,3117.1,0.8015937]
[1641876851044,0.08021,3119.3,3117.1,0.8015937]
[1641876851240,0.01285935,3118.2,3117.4,4.00051]
[1641876851440,0.01284948,3118.6,3117.9,0.65202974]
[1641876851644,0.05774734,3119.3,3118.2,0.65202974]
[1641876851841,0.00454739,3119.1,3118.2,0.65202974]
[1641876852040,0.00454739,3119.1,3118.7,1.45374144]
[1641876852239,0.00397896,3119.0,3118.8,0.65797906]
[1641876852441,0.00397896,3119.0,3118.8,0.65202974]
[1641876852642,5.78355054,3118.9,3118.8,0.65202974]
[1641876852842,5.78355054,3118.9,3118.8,2.974e-05]
[1641876853041,5.78355054,3118.9,3118.4,0.25]
[1641876853042,5.7,3118.8,3118.4,0.25]
[1641876853243,0.01246712,3118.5,3118.4,0.25]
[1641876853442,0.09261712,3118.5,3118.4,0.25]
[1641876853641,0.09375397,3118.5,3118.4,0.25]
[1641876854145,0.09375397,3118.5,3118.0,0.00170527]
[1641876854146,0.08128685,3118.5,3118.0,0.00170527]
[1641876854393,0.00113685,3118.5,3118.1,0.00699935]
[1641876854578,0.08017,3118.4,3118.0,1.60529937]
[1641876854777,0.00113685,3118.5,3118.0,1.60529937]
[1641876854977,0.00113685,3118.5,3118.1,0.00113685]
[1641876855182,0.08017,3118.9,3118.5,0.8017]
[1641876855378,0.08015,3119.2,3118.8,0.80153]
[1641876855579,0.9365281,3119.4,3118.9,1.0]
[1641876855979,0.9365281,3119.4,3118.8,1.10153]
[1641876855980,0.00397896,3119.2,3118.8,1.10153]
[1641876856180,0.00397896,3119.2,3118.9,0.80154]
[1641876856381,1.14718738,3119.3,3118.8,2.4046]
[1641876856382,0.08014,3119.1,3118.8,2.4046]
[1641876856581,0.08014,3119.2,3119.0,0.00113685]
[1641876856784,1.07116634,3119.3,3118.9,0.00170527]
[1641876857181,5.7,3119.1,3118.6,0.59291301]
[1641876857384,0.0119696,3118.9,3118.6,0.19573415]
[1641876857583,1.45016791,3118.8,3118.7,0.00113685]
[1641876857782,1.37817937,3118.8,3118.7,0.00113685]
[1641876858234,0.46916146,3118.8,3118.7,0.00113685]
[1641876858434,1.6710711,3118.8,3118.7,0.00113685]
[1641876859035,1.9710711,3118.8,3118.7,0.00113685]
[1641876859235,1.6710711,3118.8,3118.7,0.00113685]
[1641876859832,1.9710711,3118.8,3118.7,0.00113685]
[1641876860235,5.7,3118.7,3118.5,0.25]
[1641876860434,0.54115,3118.6,3118.2,18.18271819]
[1641876860633,0.461,3118.5,3118.2,18.25768529]
[1641876860834,0.08017,3118.4,3118.3,0.00227369]
[1641876861036,0.54117,3118.4,3118.3,0.00227369]
[1641876861236,0.08017,3118.4,3118.3,0.00227369]
[1641876861633,0.08017,3118.4,3118.3,1.00227369]
[1641876861885,1.74307964,3118.8,3118.4,0.07496437]
[1641876862083,2.8630103,3118.8,3118.4,18.25818022]
[1641876862279,2.8630103,3118.8,3118.5,0.00113684]
[1641876862479,1.66290964,3118.8,3118.5,0.00113684]
[1641876863681,1.66290964,3118.8,3118.5,0.80281684]
[1641876864080,1.66290964,3118.8,3118.6,0.07495892]
[1641876864481,1.52956743,3118.8,3118.5,18.98482715]
[1641876864686,0.461,3118.8,3118.5,18.98482715]
[1641876865084,0.46270527,3119.2,3118.5,18.98482715]
[1641876865486,0.0065898,3119.8,3118.7,3.55]
[1641876865744,0.08015,3119.3,3118.8,18.98337179]
[1641876865938,0.461,3119.2,3118.8,18.98507706]
[1641876866138,0.461,3119.2,3118.9,0.00113685]
[1641876866743,0.00113684,3119.3,3118.9,0.80266685]
[1641876867046,0.33659081,3120.1,3118.9,0.80266685]
[1641876867047,0.08015,3119.8,3119.2,1.0]
[1641876867246,6.01325539,3121.2,3119.2,1.0]
[1641876867247,0.461,3120.3,3119.2,19.77316888]
[1641876867441,0.00284212,3119.8,3119.3,18.1790505]
[1641876867841,0.0022737,3119.7,3119.3,18.1790505]
[1641876868342,0.08013,3120.2,3119.3,18.1790505]
[1641876868343,0.08014,3120.2,3119.3,18.1790505]
[1641876868542,0.08013,3120.6,3119.4,0.00170527]
[1641876868742,0.00227369,3120.1,3119.4,18.17761273]
[1641876868948,0.54113,3120.0,3119.4,18.17761273]
[1641876869145,5.7,3119.8,3119.0,0.00914159]
[1641876869392,5.83014,3119.7,3118.5,0.08013]
[1641876869577,5.764,3119.5,3119.1,0.00227369]
[1641876869779,0.08014,3119.4,3119.1,0.00227369]
[1641876869978,0.08014,3119.4,3118.9,0.00341054]
[1641876869979,0.461,3119.3,3118.9,0.00341054]
[1641876870279,0.08014,3119.2,3118.9,0.00341054]
[1641876870477,3.08183566,3119.1,3118.9,0.00341054]
[1641876870680,0.08014,3119.0,3118.9,0.00341054]
[1641876870876,3.39114,3119.0,3118.9,0.00341054]
[1641876871478,0.54114,3119.0,3118.9,0.00341054]
[1641876871680,0.54114,3119.0,3118.5,0.08013]
[1641876871681,1.23806304,3119.1,3118.6,0.00511581]
[1641876871882,0.08014,3119.6,3118.6,0.00511581]
[1641876872081,0.00227369,3119.7,3118.6,1.00511581]
[1641876872281,0.00227369,3119.7,3118.6,1.89471581]
[1641876872477,0.00227369,3119.7,3118.7,0.00454739]
[1641876872679,0.00344632,3119.0,3118.7,0.00454739]
[1641876872879,1.12322288,3119.3,3118.7,0.00454739]
[1641876873331,1.46700113,3118.8,3118.7,0.00454739]
[1641876875936,0.08015,3119.2,3118.7,0.00454739]
[1641876876134,0.08015,3119.2,3118.8,0.01576685]
[1641876876333,0.3,3119.3,3118.7,0.00454739]
[1641876876533,0.08014,3119.2,3118.9,0.00341054]
[1641876876733,0.08014,3119.5,3118.7,0.00454739]
[1641876877280,1.15345129,3119.4,3118.8,0.02132017]
[1641876877483,1.15345129,3119.4,3118.7,0.00682108]
[1641876877678,0.00301296,3119.2,3118.9,0.00568423]
[1641876877878,0.00301296,3119.2,3118.7,0.00682108]
[1641876878079,1.1366115,3118.9,3118.7,0.00682108]
[1641876878885,0.00301296,3119.2,3118.7,0.00682108]
[1641876879682,0.00301296,3119.2,3118.8,0.02516573]
[1641876879880,1.27245774,3119.1,3118.7,0.00682108]
[1641876880083,1.57245774,3119.1,3118.9,0.00568423]
[1641876880282,1.57245774,3119.1,3118.7,0.00682108]
[1641876880483,1.87245774,3119.1,3118.7,0.00682108]
[1641876880933,1.57245774,3119.1,3118.7,0.00682108]
[1641876881534,1.87245774,3119.1,3118.7,0.00682108]
[1641876882136,1.57245774,3119.1,3118.7,0.00682108]
[1641876882541,1.87245774,3119.1,3118.7,0.00682108]
[1641876882840,0.00301232,3119.0,3118.7,0.00682108]
[1641876883535,0.00301232,3119.0,3118.6,0.0073895]
[1641876883936,1.53310425,3119.0,3118.2,2.96223105]
[1641876884134,1.53310425,3119.0,3118.3,0.00909477]
[1641876884776,4.5,3118.9,3118.2,2.90732582]
[1641876884976,1.01624791,3118.5,3118.2,0.19509477]
[1641876885177,0.00341054,3118.9,3118.2,0.19509477]
[1641876885178,1.40601351,3118.4,3118.2,0.19509477]
[1641876885978,1.38619096,3118.7,3118.3,0.01816538]
[1641876886175,1.38619096,3118.7,3118.2,0.19509477]
[1641876886376,0.00170527,3118.6,3118.2,0.19509477]
[1641876886780,0.00113685,3118.5,3118.2,0.19509477]
[1641876887178,0.00170527,3118.6,3118.2,0.19509477]
[1641876887378,0.385,3119.4,3119.2,0.00337004]
[1641876887578,0.385,3119.4,3118.3,0.00170527]
[1641876887579,0.685,3119.4,3118.3,0.00170527]
[1641876887780,0.00301022,3118.6,3118.3,0.00170527]
[1641876888232,0.00301022,3118.6,3118.3,2.72882965]
[1641876888630,0.00301022,3118.6,3118.4,0.00113685]
[1641876891889,0.00301022,3118.6,3118.4,2.72826123]
[1641876892881,5.6747,3120.3,3118.8,0.80152]
[1641876893082,5.6747,3120.3,3118.8,2.9029848]
[1641876893283,0.00511581,3119.5,3118.9,0.00453013]
[1641876893479,0.00511581,3119.5,3118.8,5.9049133]
[1641876893681,0.00454739,3119.4,3118.8,5.9049133]
[1641876893881,0.00454739,3119.4,3119.2,3.99085174]
[1641876894082,0.00397896,3119.3,3119.2,3.99085174]
[1641876894681,0.00397896,3119.3,3119.0,3.99085174]
[1641876895183,0.00341054,3119.2,3119.0,3.99085174]
[1641876895381,0.00341054,3119.2,3118.9,2.72712438]
[1641876895638,0.00284212,3119.1,3118.9,2.72712438]
[1641876896038,0.00227369,3119.0,3118.7,5.42066636]
[1641876896437,0.00170527,3118.9,3118.7,5.72066636]
[1641876896638,0.00170527,3118.9,3118.8,11.17066636]
[1641876896938,1.26950018,3119.9,3118.8,11.17066636]
[1641876897139,1.26950018,3119.9,3118.8,6.0]
[1641876897338,0.00682108,3119.8,3118.8,9.65814571]
[1641876897540,0.00682108,3119.8,3118.8,6.0]
[1641876897739,1.44356941,3119.4,3118.8,5.0]
[1641876898141,0.00397896,3119.3,3118.8,5.0]
[1641876898540,0.00341054,3119.2,3118.8,5.0]
[1641876898743,1.1869504,3119.4,3118.9,2.1]
[1641876898942,1.1869504,3119.4,3118.9,2.10170527]
[1641876899139,1.1869504,3119.4,3119.0,0.00113685]
[1641876899680,0.3,3119.9,3118.9,2.75]
[1641876899878,1.85403947,3120.0,3119.0,0.0121754]
[1641876900079,1.38113947,3119.6,3119.0,0.01331225]
[1641876900280,1.68113947,3119.6,3119.0,0.00113685]
[1641876900580,0.00170527,3119.5,3119.3,2.39592469]
[1641876900988,0.00113685,3119.4,3119.3,2.39592469]
[1641876901184,5.7,3119.3,3119.0,0.00113685]
[1641876901385,1.14752283,3119.1,3119.0,0.00113685]
[1641876901680,1.14752283,3119.1,3118.8,0.00227369]
[1641876901681,1.44752283,3119.1,3118.8,0.00227369]
[1641876901884,0.385,3119.0,3118.8,0.00227369]
[1641876902080,0.385,3119.0,3118.5,0.25]
[1641876902282,0.00170527,3119.4,3118.6,0.00341054]
[1641876903335,0.00170527,3119.4,3118.6,0.0391143]
[1641876903738,0.00170527,3119.4,3118.7,0.00284212]
[1641876904837,1.03836483,3119.3,3118.7,0.00284212]
[1641876905035,1.09294882,3119.1,3118.7,0.00284212]
[1641876906239,0.02689579,3119.0,3118.7,0.00284212]
[1641876906738,1.09294882,3119.1,3118.7,0.00284212]
[1641876907182,0.00170527,3119.4,3118.7,0.00284212]
[1641876907383,0.00170527,3119.4,3118.8,0.01642809]
[1641876907583,0.00170527,3119.4,3118.8,0.01182159]
[1641876907783,0.00170527,3119.4,3118.9,0.00170527]
[1641876908182,0.00170527,3119.4,3118.7,0.00284212]
[1641876908383,1.21323277,3119.3,3118.7,0.00284212]
[1641876910084,1.14908998,3118.8,3118.7,0.00284212]
[1641876911233,1.14908998,3118.8,3118.7,2.72976025]
[1641876911631,1.14908998,3118.8,3118.7,0.00284212]
[1641876912231,1.14908998,3118.8,3118.7,2.72976025]
[1641876912831,1.15662751,3118.8,3118.7,2.72976025]
[1641876913940,6.64162751,3118.8,3118.7,6.025e-05]
[1641876914594,1.84162751,3118.8,3118.7,6.025e-05]
[1641876914795,0.39253753,3118.8,3118.7,6.025e-05]
[1641876915394,2.84253753,3118.8,3118.7,6.025e-05]
[1641876915595,0.39253753,3118.8,3118.7,6.025e-05]
[1641876915795,0.00753753,3118.8,3118.7,6.025e-05]
[1641876917199,1.41216992,3119.4,3118.7,1.00006025]
[1641876917395,1.41216992,3119.4,3118.7,6.025e-05]
[1641876917598,0.00341054,3119.3,3118.7,6.025e-05]
[1641876917798,0.00251251,3118.8,3118.7,6.025e-05]
[1641876918231,0.00251251,3118.8,3118.7,1.00006025]
[1641876918629,0.00251251,3118.8,3118.7,1.60733492]
[1641876919232,0.00251251,3118.8,3118.7,1.60727467]
[1641876920031,0.00251251,3118.8,3118.6,0.28570376]
[1641876922686,1.4269074,3119.1,3118.7,0.00872556]
[1641876923086,0.00170527,3119.0,3118.7,0.00872556]
[1641876923485,0.00113685,3118.9,3118.7,0.00872556]
[1641876923893,0.0084952,3119.0,3118.7,0.00872556]
[1641876924293,0.00113685,3118.9,3118.7,0.00872556]
[1641876926343,0.462,3118.8,3118.7,0.00872556]
[1641876926540,0.462,3118.8,3118.6,2.932e-05]
[1641876926741,0.762,3118.8,3118.3,1.60727467]
[1641876926947,0.95973839,3118.5,3118.1,1.60727467]
[1641876927238,0.462,3118.4,3118.1,1.60727467]
[1641876927940,0.462,3118.4,3117.8,1.60727467]
[1641876928140,0.01302034,3118.3,3117.8,1.54327467]
[1641876928438,0.462,3118.3,3117.9,0.00454739]
[1641876928640,1.22285349,3118.2,3117.9,0.00454739]
[1641876928840,0.462,3118.1,3117.9,0.00454739]
[1641876929041,0.762,3118.1,3117.9,0.00454739]
[1641876929241,0.762,3118.1,3117.8,0.00511581]
[1641876929682,0.84449711,3117.9,3117.8,0.00511581]
[1641876929885,1.30649711,3117.9,3117.5,0.00682108]
[1641876930083,1.26668466,3117.6,3117.5,0.00682108]
[1641876930283,1.26668466,3117.6,3117.4,0.0073895]
[1641876930483,1.56668466,3117.6,3117.4,0.0073895]
[1641876930985,0.462,3117.9,3117.4,0.0073895]
[1641876931383,0.762,3117.9,3117.4,0.0073895]
[1641876931587,0.462,3117.9,3117.4,0.0073895]
[1641876932184,0.462,3117.9,3117.4,1.0073895]
[1641876932584,0.462,3117.9,3117.5,0.00682108]
[1641876932787,0.46463321,3117.9,3117.5,0.00682108]
[1641876934664,0.30263321,3117.9,3117.6,2.7276969]
[1641876934860,0.00263321,3117.9,3117.6,2.7276969]
[1641876935061,0.00263321,3117.9,3117.7,0.00568423]
[1641876935864,0.00263321,3117.9,3117.8,2.7276969]
[1641876936162,0.00263321,3117.9,3117.8,2.73281271]
[1641876942140,0.00263321,3117.9,3117.8,0.00511581]
[1641876942539,1.31442073,3117.8,3117.4,0.0073895]
[1641876943144,1.61442073,3117.8,3117.4,0.0073895]
[1641876944583,1.31442073,3117.8,3117.4,0.0073895]
[1641876945184,0.00263321,3117.9,3117.4,0.0073895]
[1641876949933,0.00263321,3117.9,3117.4,1.0073895]
[1641876950332,0.00263321,3117.9,3117.5,0.00682108]
[1641876951237,0.00263321,3117.7,3117.5,0.00682108]
[1641876952082,0.00263321,3117.7,3117.3,0.00795793]
[1641876952283,0.00263321,3117.7,3117.3,3.70955244]
[1641876952480,0.00263321,3117.7,3117.4,1.0]
[1641876952685,0.00263321,3117.7,3117.4,1.0073895]
[1641876952882,0.00263321,3117.7,3117.5,0.00682108]
[1641876953082,0.00263321,3117.7,3117.5,3.61548783]
[1641876953282,0.00263321,3117.7,3117.6,1.0]
[1641876953483,0.00263321,3117.7,3117.6,1.00625266]
[1641876953683,0.00263321,3117.7,3117.6,0.00625266]
[1641876954085,0.00263321,3117.7,3117.5,0.00682108]
[1641876954986,0.00263321,3117.7,3117.5,1.61670685]
[1641876955189,0.00263321,3117.7,3117.5,2.61670685]
[1641876955385,0.00263321,3117.7,3117.6,0.00625266]
[1641876957038,0.00263321,3117.7,3117.5,0.00682108]
[1641876958136,0.00263321,3117.7,3117.6,2.72762771]
[1641876958541,0.00263321,3117.7,3117.6,2.73388037]
[1641876961886,1.10777037,3118.2,3117.6,4.34376614]
[1641876962184,1.10777037,3118.2,3117.7,0.00568423]
[1641876963332,1.10777037,3118.2,3117.8,2.72762771]
[1641876965439,9.8241,3119.1,3117.9,4.67549016]
[1641876965645,1.1326,3119.4,3118.1,0.03035489]
[1641876965835,1.1326,3119.4,3118.0,0.59291301]
[1641876965836,0.00170527,3119.0,3118.0,0.59689197]
[1641876966039,0.00170527,3119.0,3118.2,0.00284211]
[1641876966235,0.00113685,3118.9,3118.1,0.00341054]
[1641876966637,0.00284212,3119.2,3118.3,1.60988577]
[1641876966898,0.00284212,3119.2,3118.5,0.00601356]
[1641876967090,0.0022737,3119.1,3118.4,0.59461828]
[1641876967489,0.00341054,3119.3,3118.5,1.61102261]
[1641876967691,0.00338579,3118.9,3118.5,1.61102261]
[1641876967889,0.00338579,3118.9,3118.5,2.61102261]
[1641876968298,0.00338579,3118.9,3118.5,1.61102261]
[1641876968493,0.00338579,3118.9,3118.6,2.72762771]
[1641876969093,0.83364673,3118.8,3118.6,2.72762771]
[1641876969295,1.59564673,3118.8,3118.5,2.72876455]
[1641876969494,1.89564673,3118.8,3118.5,2.72876455]
[1641876970292,1.89564673,3118.8,3118.5,0.00113684]
[1641876970736,1.89564673,3118.8,3118.1,0.00341054]
[1641876970939,1.39297259,3118.2,3118.1,0.00341054]
[1641876971534,0.80198,3118.7,3118.0,0.00397896]
[1641876971736,1.062,3118.8,3118.0,0.00397896]
[1641876971935,1.062,3118.8,3118.0,2.73160667]
[1641876972337,1.062,3118.8,3118.1,0.00341054]
[1641876972736,0.00338778,3118.2,3118.1,2.73103825]
[1641876973335,0.00338778,3118.2,3118.1,0.00341054]
[1641876977790,1.27997578,3118.6,3118.1,0.00341054]
[1641876977991,1.57997578,3118.6,3118.1,0.00341054]
[1641876978245,0.462,3118.5,3118.1,0.00341054]
[1641876982684,0.46538284,3118.5,3118.1,0.00341054]
[1641876983684,1.26744284,3118.5,3118.1,0.00341054]
[1641876983884,0.3,3118.4,3118.1,0.00341054]
[1641876984088,0.762,3118.4,3118.1,0.00341054]
[1641876984286,0.762,3118.4,3117.6,0.00625266]
[1641876984486,1.17182888,3118.1,3117.6,0.00625266]
[1641876984687,1.17182888,3118.1,3117.6,1.61613843]
[1641876985088,1.17182888,3118.1,3117.7,0.00568423]
[1641876985489,1.17182888,3118.1,3117.7,2.73331194]
[1641876985956,1.17182888,3118.1,3117.8,0.00511581]
[1641876986546,0.462,3118.4,3117.7,0.00568423]
[1641876986751,0.462,3118.4,3117.9,2.72762771]
[1641876986949,0.00338284,3118.5,3117.9,2.72762771]
[1641876987147,0.00338284,3118.5,3118.0,0.00397896]
[1641876987747,0.00338705,3118.1,3118.0,0.00397896]
[1641876988949,0.00338705,3118.1,3118.0,2.73160667]
[1641876990185,0.00338705,3118.1,3118.0,4.34149244]
[1641876990788,0.00338705,3118.1,3118.0,0.00397896]
[1641876991489,0.00338705,3118.1,3118.0,2.73160667]
[1641876991894,0.00338705,3118.1,3118.0,0.00397896]
[1641876992494,0.00338705,3118.1,3118.0,2.73160667]
[1641876993135,0.00338705,3118.1,3118.0,0.00397896]
[1641876993936,0.00338705,3118.1,3118.0,2.73160667]
[1641876994135,0.00338705,3118.1,3118.0,3.73160667]
[1641876997391,0.00338705,3118.1,3118.0,4.34359065]
[1641876997589,0.00338705,3118.1,3118.0,5.34359065]
[1641876997990,0.00338705,3118.1,3118.0,2.73160667]
[1641877001540,3.86538705,3118.1,3118.0,2.73160667]
[1641877002538,0.46538705,3118.1,3118.0,2.73160667]
[1641877003338,2.81538705,3118.1,3118.0,2.73160667]
[1641877004490,0.46538705,3118.1,3118.0,2.73160667]
[1641877004691,0.00338705,3118.1,3118.0,2.73160667]
[1641877005289,0.00338705,3118.1,3118.0,1.28760667]
[1641877006993,0.00338705,3118.1,3118.0,1.88051968]
[1641877009440,0.00338705,3118.1,3118.0,2.88051968]
[1641877009842,0.00338705,3118.1,3118.0,5.28731241]
[1641877010644,0.00338705,3118.1,3118.0,2.88051968]
[1641877013793,0.00338705,3118.1,3118.0,5.28731241]
[1641877014193,0.00338705,3118.1,3118.0,2.88051968]
[1641877014392,2.3225,3119.6,3118.0,2.29963483]
[1641877014593,2.3225,3119.6,3118.1,5.63675063]
[1641877014792,0.00454739,3119.5,3118.1,5.59037543]
[1641877014992,0.00454739,3119.5,3118.8,1.15898654]
[1641877015197,3.9513,3119.8,3118.8,1.15898654]
[1641877015198,0.00397897,3119.4,3118.9,0.59291301]
[1641877015643,0.36585352,3119.9,3118.9,0.59291301]
[1641877015644,0.00341054,3119.3,3118.9,0.59291301]
[1641877016046,0.00284212,3119.2,3118.9,1.59291301]
[1641877016449,0.0022737,3119.1,3118.9,1.59291301]
[1641877016647,0.0022737,3119.1,3118.9,3.19932532]
[1641877016847,0.00170527,3119.0,3118.9,3.19932532]
[1641877017246,0.00170527,3119.0,3118.9,6.04932532]
[1641877017649,0.00170527,3119.0,3118.9,4.44291301]
[1641877018251,0.00170527,3119.0,3118.9,7.29291301]
[1641877019689,0.00170527,3119.0,3118.9,8.09424301]
[1641877020287,0.00170527,3119.0,3118.9,8.39424301]
[1641877020789,0.00170527,3119.0,3118.9,4.44291301]
[1641877020988,0.00170527,3119.0,3118.9,1.59291301]
[1641877021188,0.00170527,3119.0,3118.8,2.40961846]
[1641877021588,0.00113685,3118.9,3118.8,2.40961846]
[1641877021989,0.80164,3119.9,3118.7,3.9]
[1641877022188,4.99553899,3120.1,3118.7,3.9]
[1641877022388,0.00625266,3120.0,3118.7,3.9]
[1641877022691,0.00568423,3119.9,3118.9,0.00647581]
[1641877023142,3.19352419,3118.9,3118.8,1.0]
[1641877023539,3.19352419,3118.9,3118.6,0.25]
[1641877023938,3.19352419,3118.9,3118.7,0.00113685]
[1641877024342,3.19352419,3118.9,3118.7,0.59404986]
[1641877025541,3.19352419,3118.9,3118.8,9.18567702]
[1641877025750,3.19352419,3118.9,3118.8,10.18567702]
[1641877025943,3.19352419,3118.9,3118.8,10.48567702]
[1641877026343,3.19352419,3118.9,3118.8,7.73567702]
[1641877026744,3.19352419,3118.9,3118.8,9.33563345]
[1641877026990,3.19352419,3118.9,3118.8,9.41577345]
[1641877027395,3.19352419,3118.9,3118.8,7.81581702]
[1641877027795,3.19352419,3118.9,3118.8,8.40873003]
[1641877028195,0.00511581,3119.8,3118.9,13.05]
[1641877028400,0.00511581,3119.8,3119.6,1.33388533]
[1641877028593,1.53754032,3120.8,3119.8,0.01680078]
[1641877028792,1.53754032,3120.8,3119.7,5.79291301]
[1641877028992,0.01023162,3120.7,3119.8,1.0]
[1641877029391,0.0096632,3120.6,3119.8,1.0]
[1641877029793,0.00909477,3120.5,3119.8,1.0]
[1641877029994,0.00909477,3120.5,3119.8,3.72661144]
[1641877030194,0.00852635,3120.4,3119.8,3.72661144]
[1641877030655,0.00795793,3120.3,3119.9,2.72661144]
[1641877031057,0.0073895,3120.2,3120.0,1.59291301]
[1641877031455,0.00682108,3120.1,3120.0,1.59291301]
[1641877032053,0.00682108,3120.1,3120.0,4.79291301]
[1641877032254,0.00682108,3120.1,3120.0,7.51952445]
[1641877033055,0.00682108,3120.1,3120.0,11.45678915]
[1641877033255,0.00682108,3120.1,3120.0,11.26456686]
[1641877033454,0.00682108,3120.1,3120.0,7.51952445]
[1641877033659,0.00682108,3120.1,3120.0,11.30684305]
[1641877034057,0.00682108,3120.1,3120.0,7.51952445]
[1641877034256,2.71984664,3121.1,3120.1,2.45]
[1641877034492,2.71984664,3121.1,3120.1,6.11390078]
[1641877034493,3.01984664,3121.1,3120.1,6.11390078]
[1641877034693,0.00511581,3121.0,3120.1,6.11390078]
[1641877034893,0.00511581,3121.0,3120.2,3.72661144]
[1641877035094,0.00454739,3120.9,3120.2,2.72661144]
[1641877035493,3.01984664,3121.1,3120.2,2.72661144]
[1641877035494,0.00397897,3120.8,3120.2,2.72661144]
[1641877035692,0.00397897,3120.8,3120.3,2.72661144]
[1641877035893,0.00341054,3120.7,3120.3,2.72661144]
[1641877036301,0.00284212,3120.6,3120.0,5.14499294]
[1641877036494,0.00284212,3120.6,3120.0,1.59291301]
[1641877036694,0.00227369,3120.5,3120.0,5.42724846]
[1641877037094,0.00170527,3120.4,3120.0,5.42724846]
[1641877037494,0.00113685,3120.3,3120.0,1.59291301]
[1641877037794,0.00113685,3120.3,3120.1,2.73166007]
[1641877038243,0.00113685,3120.3,3120.2,6.7]
[1641877038441,0.00113685,3120.3,3120.2,9.42535866]
[1641877039143,0.00113685,3120.3,3120.2,3.72535866]
[1641877039343,0.00113685,3120.3,3120.2,3.31827167]
[1641877039545,1.47249597,3120.7,3120.2,3.31827167]
[1641877039745,1.17652108,3121.1,3120.2,3.31827167]
[1641877039947,0.00113684,3120.5,3120.3,1.0]
[1641877040749,0.00113684,3120.5,3120.4,9.76086455]
[1641877040949,0.00113684,3120.5,3120.4,6.31850664]
[1641877041146,0.00113684,3120.5,3120.4,7.31850664]
[1641877041346,0.00113684,3120.5,3120.4,8.40810664]
[1641877041746,0.00113684,3120.5,3120.4,8.70810664]
[1641877042012,0.00113684,3120.5,3120.4,11.43297458]
[1641877042410,0.00113684,3120.5,3120.4,11.42007034]
[1641877042809,0.00113684,3120.5,3120.4,11.34627056]
[1641877043332,0.00113684,3120.5,3120.4,9.86368117]
[1641877043511,0.00113684,3120.5,3120.4,5.71368117]
[1641877043711,0.00113684,3120.5,3120.4,4.32408117]
[1641877043914,0.00113684,3120.5,3120.4,3.73116816]
[1641877044709,0.00113684,3120.5,3120.4,4.03116816]
[1641877044912,0.00113684,3120.5,3120.4,7.77687635]
[1641877045110,0.00113684,3120.5,3120.4,8.36978936]
[1641877045511,0.00113684,3120.5,3120.4,8.43498845]
[1641877045951,0.00113684,3120.5,3120.4,2.73116816]
[1641877046853,0.00113684,3120.5,3120.4,6.03116816]
[1641877047049,0.00113684,3120.5,3120.4,7.03116816]
[1641877047654,0.00113684,3120.5,3120.4,7.62408117]
[1641877047852,0.00113684,3120.5,3120.4,4.31778095]
[1641877048154,0.00113684,3120.5,3120.4,3.72486794]
[1641877048951,0.00113684,3120.5,3120.4,6.27486794]
[1641877049400,3.20113684,3120.5,3120.4,9.96953952]
[1641877049695,3.20113684,3120.5,3120.4,10.56245253]
[1641877049893,3.20113684,3120.5,3120.4,7.16778095]
[1641877050292,3.20113684,3120.5,3120.4,10.99533816]
[1641877050493,3.20113684,3120.5,3120.4,7.16778095]
[1641877050893,3.20113684,3120.5,3120.4,10.66932391]
[1641877051894,3.20113684,3120.5,3120.4,11.76782391]
[1641877052792,3.20113684,3120.5,3120.4,12.06782391]
[1641877052994,3.20113684,3120.5,3120.4,8.26628095]
[1641877053248,3.20113684,3120.5,3120.4,4.31778095]
[1641877053846,3.20113684,3120.5,3120.4,4.61778095]
[1641877054846,3.20113684,3120.5,3120.4,4.31778095]
[1641877055248,1.39189658,3121.6,3120.9,0.01778246]
[1641877055549,0.00568424,3121.5,3120.8,1.15870961]
[1641877055947,0.00511582,3121.4,3120.8,1.15870961]
[1641877056351,1.20297167,3120.9,3120.8,1.15870961]
[1641877056751,1.20524537,3120.9,3120.8,1.15870961]
[1641877057896,1.20524537,3120.9,3120.8,1.16498004]
[1641877059496,4.40524537,3120.9,3120.8,1.16498004]
[1641877060400,3.2022737,3120.9,3120.8,1.16498004]
[1641877060645,0.0022737,3120.9,3120.8,1.75789305]
[1641877061648,1.21491215,3120.9,3120.8,1.75789305]
[1641877061850,1.21491215,3120.9,3120.8,1.16498004]
[1641877062044,0.0022737,3120.9,3120.8,1.16498004]
[1641877062845,0.0022737,3120.9,3120.8,1.15870961]
[1641877064047,0.0022737,3120.9,3120.8,1.75162262]
[1641877068644,0.0022737,3120.9,3120.8,1.15870961]
[1641877069649,0.0022737,3120.9,3120.8,1.75162262]
[1641877072305,0.0022737,3120.9,3120.8,4.47650248]
[1641877072700,0.0022737,3120.9,3120.8,5.47650248]
[1641877072900,0.00462224,3120.9,3120.8,5.47650248]
[1641877073902,0.00462224,3120.9,3120.8,4.47650248]
[1641877074502,0.00462224,3120.9,3120.8,5.47650248]
[1641877075105,0.00462224,3120.9,3120.8,4.47650248]
[1641877075644,0.00462224,3120.9,3120.8,5.47650248]
[1641877076045,0.00462224,3120.9,3120.8,4.47650248]
[1641877076446,0.00462224,3120.9,3120.8,3.88358947]
[1641877076846,0.00462224,3120.9,3120.8,4.47650248]
[1641877079046,0.00462224,3120.9,3120.8,5.47650248]
[1641877079252,0.00462224,3120.9,3120.8,4.47650248]
[1641877080492,0.00462224,3120.9,3120.8,3.88358947]
[1641877082702,0.00462224,3120.9,3120.8,4.88358947]
[1641877083355,0.00462224,3120.9,3120.8,6.47494099]
[1641877084353,0.00462224,3120.9,3120.8,5.47494099]
[1641877084553,0.00462224,3120.9,3120.8,4.88358947]
[1641877085357,0.00462224,3120.9,3120.8,6.47494099]
[1641877085954,0.00462224,3120.9,3120.8,4.88358947]
[1641877086654,1.38497471,3120.9,3120.8,4.88358947]
[1641877087091,1.38497471,3120.9,3120.8,3.88358947]
[1641877089295,2.33633888,3120.9,3120.8,3.88358947]
[1641877089496,6.78633888,3120.9,3120.8,3.88358947]
[1641877090093,2.9,3120.8,3120.3,1.59135152]
[1641877090294,0.80139,3120.6,3120.3,1.59135152]
[1641877090497,0.80139,3120.6,3120.3,1.5877461]
[1641877090750,0.80139,3120.6,3120.1,1.5877461]
[1641877090945,1.42680552,3120.3,3120.1,1.5877461]
[1641877091142,1.42680552,3120.3,3120.2,0.00170527]
[1641877091744,1.42680552,3120.3,3120.0,0.00284211]
[1641877091944,1.42680552,3120.3,3119.9,0.00341054]
[1641877092743,1.42915589,3120.3,3119.9,0.00341054]
[1641877092945,1.42915589,3120.3,3119.8,1.00397896]
[1641877093343,1.42915589,3120.3,3119.9,0.00341054]
[1641877094146,1.42915589,3120.3,3119.8,1.00397896]